[Event "Titled Tuesday Blitz February 28 Early 2023"]
[White "Rostomyan, Mikayel"]
[Black "Lenderman, Aleksandr"]
[WhiteFideId "13313754"]
[BlackFideId "2021285"]
[WhiteElo "2009"]
[BlackElo "2607"]
[Result "1-0"]
[Round "04"]
[TimeControl "180+2"]
[Date "2023.02.28"]
[WhiteClock "0:00:15"]
[BlackClock "0:01:20"]

1. d4 {[%clk 0:02:55]}  e6 {[%clk 0:02:58]} 2. Nf3 {[%clk 0:02:51]}  b6 {[%clk 0:02:57]} 3. e3 {[%clk 0:02:48]}  Bb7 {[%clk 0:02:57]} 4. Be2 {[%clk 0:02:49]}  f5 {[%clk 0:02:57]} 5. b3 {[%clk 0:02:49]}  Nf6 {[%clk 0:02:57]} 6. Bb2 {[%clk 0:02:49]}  Bd6 {[%clk 0:02:57]} 7. c4 {[%clk 0:02:48]}  O-O {[%clk 0:02:57]} 8. Nc3 {[%clk 0:02:49]}  Ne4 {[%clk 0:02:57]} 9. a3 {[%clk 0:02:44]}  Rf6 {[%clk 0:02:56]} 10. Qc2 {[%clk 0:02:00]}  Rg6 {[%clk 0:02:52]} 11. g3 {[%clk 0:02:00]}  Nxc3 {[%clk 0:02:38]} 12. Qxc3 {[%clk 0:01:56]}  Be4 {[%clk 0:02:38]} 13. O-O-O {[%clk 0:01:51]}  Nc6 {[%clk 0:02:33]} 14. h4 {[%clk 0:01:21]}  a5 {[%clk 0:02:30]} 15. h5 {[%clk 0:01:20]}  Rh6 {[%clk 0:02:27]} 16. d5 {[%clk 0:01:18]}  Qe7 {[%clk 0:02:17]} 17. dxc6 {[%clk 0:01:17]}  dxc6 {[%clk 0:02:17]} 18. Ne5 {[%clk 0:00:42]}  Bxh1 {[%clk 0:02:02]} 19. Rxh1 {[%clk 0:00:43]}  Bxa3 {[%clk 0:02:00]} 20. Nxc6 {[%clk 0:00:40]}  Bxb2+ {[%clk 0:02:00]} 21. Kxb2 {[%clk 0:00:40]}  Qc5 {[%clk 0:01:56]} 22. Bf3 {[%clk 0:00:37]}  Re8 {[%clk 0:01:56]} 23. Rd1 {[%clk 0:00:35]}  e5 {[%clk 0:01:54]} 24. Bd5+ {[%clk 0:00:28]}  Kh8 {[%clk 0:01:49]} 25. Nxe5 {[%clk 0:00:27]}  Rf6 {[%clk 0:01:36]} 26. Nd7 {[%clk 0:00:26]}  Qe7 {[%clk 0:01:36]} 27. Nxf6 {[%clk 0:00:26]}  gxf6 {[%clk 0:01:37]} 28. Bf3 {[%clk 0:00:23]}  Kg7 {[%clk 0:01:30]} 29. Qd4 {[%clk 0:00:23]}  Qb4 {[%clk 0:01:24]} 30. Qd2 {[%clk 0:00:20]}  Qf8 {[%clk 0:01:22]} 31. Qd7+ {[%clk 0:00:19]}  Re7 {[%clk 0:01:22]} 32. Qxf5 {[%clk 0:00:19]}  Kh8 {[%clk 0:01:21]} 33. Rd8 {[%clk 0:00:15]}  Qxd8 {[%clk 0:01:20]} 34. Qxf6+ {[%clk 0:00:16]}  Kg8 {[%clk 0:01:20]} 35. Bd5+ {[%clk 0:00:16]}  Qxd5 {[%clk 0:01:19]} 36. cxd5 {[%clk 0:00:15]}  Rf7 {[%clk 0:01:20]} 37. Qg5+ {[%clk 0:00:15]}  Kf8 {[%clk 0:01:20]} 38. Qd8+ {[%clk 0:00:15]}  Kg7 {[%clk 0:01:21]} 39. h6+ {[%clk 0:00:16]}  Kxh6 {[%clk 0:01:20]} 40. f4 {[%clk 0:00:16]}  Kg7 {[%clk 0:01:18]} 41. Qg5+ {[%clk 0:00:15]}  Kf8 {[%clk 0:01:18]} 42. e4 {[%clk 0:00:16]}  Ke8 {[%clk 0:01:18]} 43. e5 {[%clk 0:00:16]}  Kf8 {[%clk 0:01:17]} 44. e6 {[%clk 0:00:16]}  Re7 {[%clk 0:01:18]} 45. Qf6+ {[%clk 0:00:16]}  Ke8 {[%clk 0:01:19]} 46. f5 {[%clk 0:00:16]}  Kd8 {[%clk 0:01:19]} 47. Qf8+ {[%clk 0:00:15]}  Re8 {[%clk 0:01:19]} 48. Qf6+ {[%clk 0:00:15]}  Kc8 {[%clk 0:01:20]} 49. e7 {[%clk 0:00:14]}  Kd7 {[%clk 0:01:20]} 50. Qe6# {[%clk 0:00:15]} 1-0


[Site "https://www.chess.com"]

[Event "Titled Tuesday Blitz February 28 Early 2023"]
[White "Starozhilov, Leonid"]
[Black "Kamsky, Gata"]
[WhiteFideId "14106752"]
[BlackFideId "2000024"]
[WhiteElo "2414"]
[BlackElo "2666"]
[Result "1/2-1/2"]
[Round "04"]
[TimeControl "180+2"]
[Date "2023.02.28"]
[WhiteClock "0:00:14"]
[BlackClock "0:00:36"]

1. e4 {[%clk 0:02:43]}  e5 {[%clk 0:02:55]} 2. Nf3 {[%clk 0:02:43]}  Nc6 {[%clk 0:02:54]} 3. Bb5 {[%clk 0:02:43]}  a6 {[%clk 0:02:51]} 4. Ba4 {[%clk 0:02:36]}  Nf6 {[%clk 0:02:51]} 5. d3 {[%clk 0:02:36]}  d6 {[%clk 0:02:50]} 6. h3 {[%clk 0:02:34]}  Bd7 {[%clk 0:02:49]} 7. c3 {[%clk 0:02:34]}  g6 {[%clk 0:02:50]} 8. O-O {[%clk 0:02:32]}  Bg7 {[%clk 0:02:50]} 9. Re1 {[%clk 0:02:33]}  O-O {[%clk 0:02:50]} 10. Bg5 {[%clk 0:02:33]}  Qe8 {[%clk 0:02:50]} 11. Bxf6 {[%clk 0:02:32]}  Bxf6 {[%clk 0:02:49]} 12. Nbd2 {[%clk 0:02:32]}  Bg7 {[%clk 0:02:49]} 13. Bxc6 {[%clk 0:02:21]}  Bxc6 {[%clk 0:02:48]} 14. d4 {[%clk 0:02:22]}  b6 {[%clk 0:02:38]} 15. Qc2 {[%clk 0:02:14]}  Bb7 {[%clk 0:02:32]} 16. Rad1 {[%clk 0:02:13]}  Rd8 {[%clk 0:02:26]} 17. dxe5 {[%clk 0:01:54]}  dxe5 {[%clk 0:02:24]} 18. Nc4 {[%clk 0:01:48]}  Qe6 {[%clk 0:02:23]} 19. b3 {[%clk 0:01:47]}  f6 {[%clk 0:02:14]} 20. Rxd8 {[%clk 0:01:32]}  Rxd8 {[%clk 0:02:12]} 21. Rd1 {[%clk 0:01:33]}  Rd7 {[%clk 0:02:07]} 22. Rxd7 {[%clk 0:01:10]}  Qxd7 {[%clk 0:02:07]} 23. Ne3 {[%clk 0:01:01]}  Bf8 {[%clk 0:02:03]} 24. Qd2 {[%clk 0:00:45]}  Qxd2 {[%clk 0:02:02]} 25. Nxd2 {[%clk 0:00:46]}  Kf7 {[%clk 0:01:54]} 26. Kf1 {[%clk 0:00:44]}  Ke6 {[%clk 0:01:54]} 27. g4 {[%clk 0:00:44]}  h5 {[%clk 0:01:51]} 28. Ke2 {[%clk 0:00:44]}  Bh6 {[%clk 0:01:50]} 29. f3 {[%clk 0:00:43]}  Bg5 {[%clk 0:01:47]} 30. gxh5 {[%clk 0:00:36]}  gxh5 {[%clk 0:01:46]} 31. Nf5 {[%clk 0:00:36]}  Kf7 {[%clk 0:01:43]} 32. h4 {[%clk 0:00:29]}  Bf4 {[%clk 0:01:41]} 33. Nc4 {[%clk 0:00:28]}  Bc6 {[%clk 0:01:33]} 34. Nce3 {[%clk 0:00:26]}  Bxe3 {[%clk 0:01:13]} 35. Kxe3 {[%clk 0:00:23]}  Bd7 {[%clk 0:01:13]} 36. Ng3 {[%clk 0:00:23]}  Kg6 {[%clk 0:01:12]} 37. a3 {[%clk 0:00:22]}  Be6 {[%clk 0:01:09]} 38. b4 {[%clk 0:00:22]}  Bc4 {[%clk 0:01:07]} 39. f4 {[%clk 0:00:22]}  Bb5 {[%clk 0:00:58]} 40. Nf5 {[%clk 0:00:14]}  Kf7 {[%clk 0:00:54]} 41. Ng3 {[%clk 0:00:14]}  Kg6 {[%clk 0:00:53]} 42. Nf5 {[%clk 0:00:14]}  Kf7 {[%clk 0:00:37]} 43. Ng3 {[%clk 0:00:14]}  Kg6 {[%clk 0:00:36]} 1/2-1/2


[Site "https://www.chess.com"]

[Event "Titled Tuesday Blitz February 28 Early 2023"]
[White "Sasikiran, Krishnan"]
[Black "Karttunen, Mika"]
[WhiteFideId "5004985"]
[BlackFideId "502081"]
[WhiteElo "2567"]
[BlackElo "2396"]
[Result "1-0"]
[Round "04"]
[TimeControl "180+2"]
[Date "2023.02.28"]
[WhiteClock "0:00:31"]
[BlackClock "0:00:03"]

1. d4 {[%clk 0:03:00]}  Nf6 {[%clk 0:02:59]} 2. c4 {[%clk 0:03:01]}  e6 {[%clk 0:02:59]} 3. Nc3 {[%clk 0:03:02]}  d5 {[%clk 0:03:00]} 4. cxd5 {[%clk 0:03:01]}  exd5 {[%clk 0:03:00]} 5. Bg5 {[%clk 0:03:01]}  Bb4 {[%clk 0:03:00]} 6. e3 {[%clk 0:03:01]}  h6 {[%clk 0:02:58]} 7. Bh4 {[%clk 0:03:02]}  g5 {[%clk 0:02:57]} 8. Bg3 {[%clk 0:03:02]}  Ne4 {[%clk 0:02:58]} 9. Rc1 {[%clk 0:03:01]}  h5 {[%clk 0:02:44]} 10. f3 {[%clk 0:03:01]}  Nxg3 {[%clk 0:02:43]} 11. hxg3 {[%clk 0:03:00]}  c6 {[%clk 0:02:34]} 12. Bd3 {[%clk 0:02:58]}  Qe7 {[%clk 0:02:16]} 13. Kf2 {[%clk 0:02:51]}  Be6 {[%clk 0:02:13]} 14. g4 {[%clk 0:02:32]}  h4 {[%clk 0:02:10]} 15. f4 {[%clk 0:02:31]}  gxf4 {[%clk 0:01:44]} 16. exf4 {[%clk 0:02:31]}  Qf6 {[%clk 0:01:44]} 17. f5 {[%clk 0:02:27]}  Qxd4+ {[%clk 0:01:38]} 18. Kf1 {[%clk 0:02:27]}  Bd7 {[%clk 0:01:07]} 19. Qe2+ {[%clk 0:01:53]}  Kf8 {[%clk 0:01:06]} 20. Nf3 {[%clk 0:01:52]}  Qxg4 {[%clk 0:00:57]} 21. Qe5 {[%clk 0:01:52]}  Rg8 {[%clk 0:00:50]} 22. Nxh4 {[%clk 0:01:34]}  Qg5 {[%clk 0:00:18]} 23. Re1 {[%clk 0:01:31]}  Na6 {[%clk 0:00:18]} 24. Bxa6 {[%clk 0:01:15]}  Re8 {[%clk 0:00:18]} 25. Qd4 {[%clk 0:01:10]}  Rxe1+ {[%clk 0:00:16]} 26. Kxe1 {[%clk 0:01:09]}  c5 {[%clk 0:00:13]} 27. Qxd5 {[%clk 0:01:08]}  Qc1+ {[%clk 0:00:10]} 28. Qd1 {[%clk 0:00:55]}  Bxc3+ {[%clk 0:00:09]} 29. bxc3 {[%clk 0:00:55]}  Qxc3+ {[%clk 0:00:10]} 30. Kf1 {[%clk 0:00:53]}  bxa6 {[%clk 0:00:03]} 31. Qxd7 {[%clk 0:00:40]}  Qc1+ {[%clk 0:00:03]} 32. Kf2 {[%clk 0:00:38]}  Qxh1 {[%clk 0:00:03]} 33. Qd8+ {[%clk 0:00:38]}  Kg7 {[%clk 0:00:03]} 34. Qg5+ {[%clk 0:00:38]}  Kf8 {[%clk 0:00:04]} 35. Qd8+ {[%clk 0:00:34]}  Kg7 {[%clk 0:00:04]} 36. Qg5+ {[%clk 0:00:34]}  Kf8 {[%clk 0:00:04]} 37. Qh6+ {[%clk 0:00:32]}  Ke7 {[%clk 0:00:04]} 38. Ng6+ {[%clk 0:00:32]}  Rxg6 {[%clk 0:00:02]} 39. Qxh1 {[%clk 0:00:32]}  Rd6 {[%clk 0:00:03]} 40. Qh4+ {[%clk 0:00:31]}  Kd7 {[%clk 0:00:03]} 41. Qc4 {[%clk 0:00:31]}  Kc6 {[%clk 0:00:03]} 42. Qxf7 {[%clk 0:00:31]} 1-0


[Site "https://www.chess.com"]

[Event "Titled Tuesday Blitz February 28 Early 2023"]
[White "Moroni, Luca Jr"]
[Black "Postma, Dinant"]
[WhiteFideId "865834"]
[BlackFideId "1018612"]
[WhiteElo "2569"]
[BlackElo "2579"]
[Result "0-1"]
[Round "04"]
[TimeControl "180+2"]
[Date "2023.02.28"]
[WhiteClock "0:00:01"]
[BlackClock "0:00:06"]

1. d4 {[%clk 0:03:00]}  d5 {[%clk 0:02:55]} 2. Bf4 {[%clk 0:03:01]}  c5 {[%clk 0:02:53]} 3. e3 {[%clk 0:03:01]}  Nc6 {[%clk 0:02:54]} 4. Nf3 {[%clk 0:03:00]}  Nf6 {[%clk 0:02:46]} 5. Nbd2 {[%clk 0:02:58]}  e6 {[%clk 0:02:36]} 6. c3 {[%clk 0:02:53]}  Nh5 {[%clk 0:02:36]} 7. Bg5 {[%clk 0:02:52]}  f6 {[%clk 0:02:32]} 8. Bh4 {[%clk 0:02:52]}  g6 {[%clk 0:02:32]} 9. Bb5 {[%clk 0:02:53]}  Bg7 {[%clk 0:02:24]} 10. dxc5 {[%clk 0:02:45]}  O-O {[%clk 0:02:20]} 11. Nd4 {[%clk 0:02:36]}  Bd7 {[%clk 0:02:07]} 12. Bxc6 {[%clk 0:02:21]}  bxc6 {[%clk 0:02:06]} 13. g4 {[%clk 0:02:19]}  e5 {[%clk 0:01:56]} 14. gxh5 {[%clk 0:02:17]}  exd4 {[%clk 0:01:54]} 15. cxd4 {[%clk 0:02:17]}  Bf5 {[%clk 0:01:46]} 16. hxg6 {[%clk 0:02:10]}  hxg6 {[%clk 0:01:45]} 17. Bg3 {[%clk 0:02:10]}  Qa5 {[%clk 0:01:40]} 18. Qb3 {[%clk 0:01:38]}  Rae8 {[%clk 0:01:29]} 19. h4 {[%clk 0:01:28]}  Bh6 {[%clk 0:01:23]} 20. h5 {[%clk 0:01:26]}  g5 {[%clk 0:01:17]} 21. O-O-O {[%clk 0:01:00]}  Rf7 {[%clk 0:01:13]} 22. Bd6 {[%clk 0:00:59]}  g4 {[%clk 0:01:02]} 23. Nf1 {[%clk 0:00:55]}  Qa6 {[%clk 0:00:58]} 24. Ng3 {[%clk 0:00:48]}  Bh7 {[%clk 0:00:57]} 25. a3 {[%clk 0:00:38]}  Rb7 {[%clk 0:00:53]} 26. Qc3 {[%clk 0:00:38]}  Qa4 {[%clk 0:00:50]} 27. b4 {[%clk 0:00:17]}  Bxe3+ {[%clk 0:00:32]} 28. fxe3 {[%clk 0:00:16]}  Rxe3 {[%clk 0:00:32]} 29. Qb2 {[%clk 0:00:05]}  Rxa3 {[%clk 0:00:31]} 30. Rde1 {[%clk 0:00:03]}  Ra1+ {[%clk 0:00:28]} 31. Kd2 {[%clk 0:00:03]}  Ra2 {[%clk 0:00:28]} 32. Re8+ {[%clk 0:00:04]}  Kf7 {[%clk 0:00:27]} 33. Rf8+ {[%clk 0:00:04]}  Kg7 {[%clk 0:00:25]} 34. h6+ {[%clk 0:00:03]}  Kg6 {[%clk 0:00:23]} 35. Qxa2 {[%clk 0:00:02]}  Qxa2+ {[%clk 0:00:23]} 36. Ke3 {[%clk 0:00:02]}  Rxb4 {[%clk 0:00:19]} 37. Ne2 {[%clk 0:00:02]}  Rb3+ {[%clk 0:00:16]} 38. Kf2 {[%clk 0:00:02]}  Rf3+ {[%clk 0:00:15]} 39. Ke1 {[%clk 0:00:03]}  Re3 {[%clk 0:00:13]} 40. Rh2 {[%clk 0:00:02]}  Qb1+ {[%clk 0:00:08]} 41. Kf2 {[%clk 0:00:01]}  Rf3+ {[%clk 0:00:06]} 42. Kg2 {[%clk 0:00:01]}  Qf1# {[%clk 0:00:06]} 0-1


[Site "https://www.chess.com"]

[Event "Titled Tuesday Blitz February 28 Early 2023"]
[White "Amin, Bassem"]
[Black "Ingebretsen, Jens E"]
[WhiteFideId "10601457"]
[BlackFideId "1522965"]
[WhiteElo "2690"]
[BlackElo "2213"]
[Result "1-0"]
[Round "04"]
[TimeControl "180+2"]
[Date "2023.02.28"]
[WhiteClock "0:00:05"]
[BlackClock "0:00:02"]

1. e4 {[%clk 0:03:00]}  e6 {[%clk 0:03:00]} 2. d3 {[%clk 0:03:00]}  d5 {[%clk 0:03:00]} 3. Nd2 {[%clk 0:03:01]}  Nc6 {[%clk 0:02:58]} 4. Ngf3 {[%clk 0:03:01]}  e5 {[%clk 0:02:57]} 5. c3 {[%clk 0:02:44]}  Nf6 {[%clk 0:02:57]} 6. b4 {[%clk 0:02:43]}  a6 {[%clk 0:02:54]} 7. Bb2 {[%clk 0:02:40]}  Be7 {[%clk 0:02:44]} 8. g3 {[%clk 0:02:31]}  Bg4 {[%clk 0:02:31]} 9. h3 {[%clk 0:02:28]}  Bh5 {[%clk 0:02:30]} 10. Bg2 {[%clk 0:02:10]}  dxe4 {[%clk 0:02:15]} 11. Nxe4 {[%clk 0:02:09]}  Nxe4 {[%clk 0:02:02]} 12. dxe4 {[%clk 0:02:10]}  O-O {[%clk 0:02:00]} 13. O-O {[%clk 0:02:09]}  Qxd1 {[%clk 0:01:58]} 14. Rfxd1 {[%clk 0:02:10]}  Rfd8 {[%clk 0:01:57]} 15. a4 {[%clk 0:02:03]}  Rxd1+ {[%clk 0:01:52]} 16. Rxd1 {[%clk 0:02:04]}  Rd8 {[%clk 0:01:53]} 17. Rxd8+ {[%clk 0:02:04]}  Bxd8 {[%clk 0:01:52]} 18. b5 {[%clk 0:02:01]}  axb5 {[%clk 0:01:39]} 19. axb5 {[%clk 0:02:02]}  Na7 {[%clk 0:01:37]} 20. g4 {[%clk 0:01:29]}  Bg6 {[%clk 0:01:36]} 21. Nxe5 {[%clk 0:01:27]}  Nxb5 {[%clk 0:01:36]} 22. f4 {[%clk 0:01:23]}  f6 {[%clk 0:01:15]} 23. Nxg6 {[%clk 0:01:23]}  hxg6 {[%clk 0:01:16]} 24. c4 {[%clk 0:01:16]}  Na7 {[%clk 0:01:13]} 25. e5 {[%clk 0:01:15]}  c6 {[%clk 0:01:08]} 26. e6 {[%clk 0:01:09]}  f5 {[%clk 0:01:05]} 27. Bf1 {[%clk 0:00:52]}  b5 {[%clk 0:00:50]} 28. Bd3 {[%clk 0:00:46]}  bxc4 {[%clk 0:00:44]} 29. Bxc4 {[%clk 0:00:47]}  Be7 {[%clk 0:00:43]} 30. Bd3 {[%clk 0:00:45]}  c5 {[%clk 0:00:34]} 31. gxf5 {[%clk 0:00:43]}  gxf5 {[%clk 0:00:35]} 32. Bxf5 {[%clk 0:00:43]}  c4 {[%clk 0:00:36]} 33. Kf2 {[%clk 0:00:38]}  Nb5 {[%clk 0:00:34]} 34. Be5 {[%clk 0:00:37]}  Nd6 {[%clk 0:00:26]} 35. Bg6 {[%clk 0:00:37]}  Kf8 {[%clk 0:00:17]} 36. Ke3 {[%clk 0:00:36]}  Nb5 {[%clk 0:00:13]} 37. Ke4 {[%clk 0:00:35]}  c3 {[%clk 0:00:11]} 38. Kd3 {[%clk 0:00:33]}  Bf6 {[%clk 0:00:11]} 39. Bxf6 {[%clk 0:00:17]}  gxf6 {[%clk 0:00:12]} 40. h4 {[%clk 0:00:18]}  Nc7 {[%clk 0:00:11]} 41. f5 {[%clk 0:00:16]}  Nd5 {[%clk 0:00:11]} 42. h5 {[%clk 0:00:15]}  Kg7 {[%clk 0:00:11]} 43. Be8 {[%clk 0:00:10]}  Kh6 {[%clk 0:00:11]} 44. Bg6 {[%clk 0:00:07]}  Kg5 {[%clk 0:00:11]} 45. Kc2 {[%clk 0:00:07]}  Kh6 {[%clk 0:00:11]} 46. Kd3 {[%clk 0:00:06]}  Kg5 {[%clk 0:00:11]} 47. Be8 {[%clk 0:00:05]}  Kh6 {[%clk 0:00:10]} 48. Bf7 {[%clk 0:00:05]}  Kg5 {[%clk 0:00:10]} 49. Bg6 {[%clk 0:00:04]}  Kh6 {[%clk 0:00:10]} 50. Kc2 {[%clk 0:00:04]}  Kg5 {[%clk 0:00:11]} 51. Kb3 {[%clk 0:00:04]}  Kh6 {[%clk 0:00:11]} 52. Be8 {[%clk 0:00:04]}  Kg5 {[%clk 0:00:11]} 53. Bc6 {[%clk 0:00:04]}  Ne7 {[%clk 0:00:10]} 54. Be4 {[%clk 0:00:04]}  Kxh5 {[%clk 0:00:06]} 55. Kxc3 {[%clk 0:00:05]}  Kh6 {[%clk 0:00:05]} 56. Kd4 {[%clk 0:00:05]}  Kg7 {[%clk 0:00:05]} 57. Kc5 {[%clk 0:00:06]}  Kf8 {[%clk 0:00:05]} 58. Kd6 {[%clk 0:00:06]}  Nc8+ {[%clk 0:00:06]} 59. Kd7 {[%clk 0:00:06]}  Nb6+ {[%clk 0:00:06]} 60. Kd8 {[%clk 0:00:05]}  Nd7 {[%clk 0:00:02]} 61. Kxd7 {[%clk 0:00:04]}  Kg7 {[%clk 0:00:02]} 62. e7 {[%clk 0:00:05]} 1-0


[Site "https://www.chess.com"]

[Event "Titled Tuesday Blitz February 28 Early 2023"]
[White "Andreikin, Dmitry"]
[Black "Arabidze, Meri"]
[WhiteFideId "4158814"]
[BlackFideId "13604040"]
[WhiteElo "2736"]
[BlackElo "2405"]
[Result "1-0"]
[Round "04"]
[TimeControl "180+2"]
[Date "2023.02.28"]
[WhiteClock "0:00:21"]
[BlackClock "0:00:05"]

1. Nf3 {[%clk 0:03:00]}  c5 {[%clk 0:02:59]} 2. c4 {[%clk 0:02:58]}  b6 {[%clk 0:02:59]} 3. Nc3 {[%clk 0:02:58]}  Bb7 {[%clk 0:03:00]} 4. g3 {[%clk 0:02:46]}  g6 {[%clk 0:02:56]} 5. Bg2 {[%clk 0:02:46]}  Bg7 {[%clk 0:02:57]} 6. O-O {[%clk 0:02:47]}  d6 {[%clk 0:02:52]} 7. b3 {[%clk 0:02:43]}  Nf6 {[%clk 0:02:49]} 8. Bb2 {[%clk 0:02:43]}  O-O {[%clk 0:02:50]} 9. d4 {[%clk 0:02:40]}  a6 {[%clk 0:02:34]} 10. d5 {[%clk 0:02:31]}  b5 {[%clk 0:02:34]} 11. Qc2 {[%clk 0:02:27]}  b4 {[%clk 0:02:29]} 12. Nd1 {[%clk 0:02:18]}  a5 {[%clk 0:02:20]} 13. a4 {[%clk 0:02:12]}  e5 {[%clk 0:02:13]} 14. dxe6 {[%clk 0:01:58]}  fxe6 {[%clk 0:02:14]} 15. Ne3 {[%clk 0:01:58]}  Qe7 {[%clk 0:02:11]} 16. Rad1 {[%clk 0:01:58]}  Nc6 {[%clk 0:02:10]} 17. h4 {[%clk 0:01:54]}  Rad8 {[%clk 0:02:08]} 18. Ng5 {[%clk 0:01:52]}  Nh5 {[%clk 0:01:33]} 19. Nxe6 {[%clk 0:01:44]}  Nd4 {[%clk 0:01:03]} 20. Bxd4 {[%clk 0:01:31]}  Bxg2 {[%clk 0:01:00]} 21. Bxg7 {[%clk 0:01:05]}  Bxf1 {[%clk 0:00:47]} 22. Nxf8 {[%clk 0:00:54]}  Nxg7 {[%clk 0:00:19]} 23. Nxg6 {[%clk 0:00:49]}  hxg6 {[%clk 0:00:19]} 24. Rxf1 {[%clk 0:00:43]}  Kh7 {[%clk 0:00:19]} 25. Rd1 {[%clk 0:00:39]}  Rf8 {[%clk 0:00:17]} 26. Rd5 {[%clk 0:00:35]}  Qf6 {[%clk 0:00:14]} 27. f3 {[%clk 0:00:31]}  Nf5 {[%clk 0:00:08]} 28. Nxf5 {[%clk 0:00:26]}  gxf5 {[%clk 0:00:09]} 29. Kf2 {[%clk 0:00:23]}  Kg7 {[%clk 0:00:08]} 30. Qd2 {[%clk 0:00:23]}  Rd8 {[%clk 0:00:03]} 31. Qg5+ {[%clk 0:00:21]}  Qxg5 {[%clk 0:00:03]} 32. hxg5 {[%clk 0:00:22]}  Kg6 {[%clk 0:00:04]} 33. f4 {[%clk 0:00:22]}  Kh5 {[%clk 0:00:04]} 34. Kf3 {[%clk 0:00:22]}  Rd7 {[%clk 0:00:05]} 35. Rxf5 {[%clk 0:00:21]}  d5 {[%clk 0:00:05]} 36. Rf6 {[%clk 0:00:21]} 1-0


[Site "https://www.chess.com"]

[Event "Titled Tuesday Blitz February 28 Early 2023"]
[White "Fedoseev, Vladimir"]
[Black "Shapiro, Viktor"]
[WhiteFideId "24130737"]
[BlackFideId "4175700"]
[WhiteElo "2752"]
[BlackElo "2132"]
[Result "1-0"]
[Round "04"]
[TimeControl "180+2"]
[Date "2023.02.28"]
[WhiteClock "0:00:24"]
[BlackClock "0:00:05"]

1. e4 {[%clk 0:02:43]}  Nf6 {[%clk 0:02:59]} 2. e5 {[%clk 0:02:43]}  Nd5 {[%clk 0:02:59]} 3. d4 {[%clk 0:02:43]}  d6 {[%clk 0:02:59]} 4. c4 {[%clk 0:02:44]}  Nb6 {[%clk 0:03:00]} 5. f4 {[%clk 0:02:45]}  g6 {[%clk 0:02:59]} 6. Nc3 {[%clk 0:02:41]}  Bg7 {[%clk 0:02:59]} 7. Nf3 {[%clk 0:02:38]}  Bg4 {[%clk 0:02:58]} 8. Be2 {[%clk 0:02:37]}  O-O {[%clk 0:02:58]} 9. O-O {[%clk 0:02:33]}  dxe5 {[%clk 0:02:57]} 10. fxe5 {[%clk 0:02:33]}  c5 {[%clk 0:02:55]} 11. dxc5 {[%clk 0:02:29]}  N6d7 {[%clk 0:02:54]} 12. Be3 {[%clk 0:02:15]}  Nc6 {[%clk 0:02:51]} 13. Qb3 {[%clk 0:01:55]}  Bxf3 {[%clk 0:02:19]} 14. Bxf3 {[%clk 0:01:51]}  Ndxe5 {[%clk 0:02:20]} 15. Rad1 {[%clk 0:01:45]}  Qa5 {[%clk 0:02:12]} 16. Be2 {[%clk 0:01:38]}  e6 {[%clk 0:02:01]} 17. Ne4 {[%clk 0:01:34]}  h6 {[%clk 0:01:47]} 18. Nd6 {[%clk 0:01:32]}  Rab8 {[%clk 0:01:38]} 19. a3 {[%clk 0:01:29]}  f5 {[%clk 0:01:28]} 20. Qc2 {[%clk 0:01:27]}  b6 {[%clk 0:01:15]} 21. cxb6 {[%clk 0:01:16]}  axb6 {[%clk 0:01:15]} 22. Nb5 {[%clk 0:01:13]}  Rfd8 {[%clk 0:01:04]} 23. b4 {[%clk 0:01:08]}  Qa6 {[%clk 0:01:03]} 24. Qb3 {[%clk 0:01:01]}  Kh7 {[%clk 0:01:00]} 25. h3 {[%clk 0:00:54]}  Qb7 {[%clk 0:00:59]} 26. c5 {[%clk 0:00:49]}  bxc5 {[%clk 0:00:58]} 27. Bxc5 {[%clk 0:00:50]}  Nd7 {[%clk 0:00:44]} 28. Bf2 {[%clk 0:00:50]}  Nf8 {[%clk 0:00:40]} 29. a4 {[%clk 0:00:45]}  e5 {[%clk 0:00:39]} 30. Bc4 {[%clk 0:00:41]}  Nd4 {[%clk 0:00:37]} 31. Nxd4 {[%clk 0:00:38]}  exd4 {[%clk 0:00:37]} 32. b5 {[%clk 0:00:39]}  Nd7 {[%clk 0:00:36]} 33. a5 {[%clk 0:00:32]}  Nc5 {[%clk 0:00:36]} 34. Qb4 {[%clk 0:00:31]}  Ne4 {[%clk 0:00:36]} 35. b6 {[%clk 0:00:30]}  Nxf2 {[%clk 0:00:27]} 36. Rxf2 {[%clk 0:00:30]}  h5 {[%clk 0:00:20]} 37. Bd3 {[%clk 0:00:29]}  Kh6 {[%clk 0:00:17]} 38. Rc2 {[%clk 0:00:25]}  Rdc8 {[%clk 0:00:13]} 39. a6 {[%clk 0:00:25]}  Qd7 {[%clk 0:00:10]} 40. Rxc8 {[%clk 0:00:24]}  Qxc8 {[%clk 0:00:10]} 41. a7 {[%clk 0:00:24]}  Rb7 {[%clk 0:00:06]} 42. Ba6 {[%clk 0:00:23]}  Qc2 {[%clk 0:00:05]} 43. Qd2+ {[%clk 0:00:23]}  Qxd2 {[%clk 0:00:04]} 44. Rxd2 {[%clk 0:00:23]}  Rxb6 {[%clk 0:00:05]} 45. a8=Q {[%clk 0:00:24]} 1-0


[Site "https://www.chess.com"]